bitfinex-derivatives/quotes_SOLF0:USTF0_20251122
["timestamp","ask_amount","ask_price","bid_price","bid_amount"]
[1763788629003,10.251,126.13,126.07,3.33]
[1763788629400,0.05497822,126.11,126.09,0.05814188]
[1763788630102,3.16497822,126.11,126.09,0.05814188]
[1763788633598,10.30727822,126.11,126.09,0.05814188]
[1763788633804,0.05497822,126.11,126.09,3.38814188]
[1763788634503,0.05497822,126.11,126.09,0.05814188]
[1763788634803,0.05497822,126.11,126.09,3.38814188]
[1763788635299,0.05497822,126.11,126.09,0.05814188]
[1763788635516,3.16497822,126.11,126.09,0.05814188]
[1763788635905,3.16497822,126.11,126.03,3.33]
[1763788635906,3.11,126.09,126.03,3.33]
[1763788636101,3.11,126.08,126.03,3.33]
[1763788636601,10.2537,126.08,126.01,3.33]
[1763788636905,3.11,126.08,126.01,3.33]
[1763788637106,3.11,126.07,126.01,3.33]
[1763788637306,3.11,126.07,126.03,0.05438444]
[1763788637307,0.05187436,126.05,126.03,0.05438444]
[1763788640609,0.05187436,126.05,126.03,3.38438444]
[1763788641610,0.05187436,126.05,126.03,0.05438444]
[1763788642011,3.11,126.04,126.03,0.05438444]
[1763788643007,0.05187436,126.05,126.03,0.05438444]
[1763788643605,0.05187436,126.05,126.03,3.38438444]
[1763788646009,0.05187436,126.05,126.03,0.05438444]
[1763788647117,0.05187436,126.05,126.03,3.38438444]
[1763788652320,7.1429,126.1,126.03,3.38438444]
[1763788653617,7.1429,126.1,126.03,0.05438444]
[1763788653618,3.11,126.07,126.03,0.05438444]
[1763788654010,3.11,126.05,126.03,0.05438444]
[1763788654219,3.16124589,126.05,126.03,0.05438444]
[1763788655623,10.30674589,126.05,126.03,0.05438444]
[1763788655916,3.24,126.04,126.03,0.05438444]
[1763788657314,7.1468,126.03,125.97,3.04]
[1763788657522,10.1568,126.03,125.97,3.04]
[1763788658818,0.05102923,126.01,125.99,3.09187436]
[1763788659212,0.05102923,126.01,125.99,0.05187436]
[1763788659213,3.06102923,126.01,125.99,0.05187436]
[1763788660112,3.06102923,126.01,125.95,3.04]
[1763788660113,10.1588,125.99,125.95,3.04]
[1763788660422,3.01,125.99,125.95,3.04]
[1763788661109,0.0530244,125.98,125.95,3.04]
[1763788662813,3.0630244,125.98,125.91,16.1929]
[1763788663023,3.0630244,125.98,125.92,3.04]
[1763788663419,10.2125244,125.98,125.92,3.04]
[1763788664124,3.01,125.96,125.92,3.04]
[1763788664327,0.05353844,125.95,125.92,3.04]
[1763788665925,0.05353844,125.95,125.93,3.04]
[1763788667925,120.46400162,126.01,125.93,3.04]
[1763788667926,3.01,126.01,125.94,3.04]
[1763788668228,10.1566,126.03,125.94,3.04]
[1763788668523,3.01,126.03,125.97,3.04]
[1763788668718,12.28600162,126.06,125.97,3.04]
[1763788668914,0.05350282,126.03,126.0,3.09353844]
[1763788670317,0.05350282,126.03,126.0,19.89353844]
[1763788670517,0.05350282,126.03,126.01,3.04]
[1763788671327,0.05350282,126.03,126.0,16.85353844]
[1763788671527,3.06350282,126.03,126.0,3.09353844]
[1763788671723,0.05350282,126.03,126.0,3.09353844]
[1763788672636,3.06350282,126.03,126.0,0.05353844]
[1763788672934,3.06350282,126.03,126.0,3.09353844]
[1763788673744,3.06350282,126.03,126.0,0.05353844]
[1763788674441,3.06350282,126.03,126.0,3.09353844]
[1763788675834,0.05350282,126.03,126.0,3.09353844]
[1763788677540,0.05350282,126.03,126.01,7.1474]
[1763788677737,0.05350282,126.03,126.02,3.04]
[1763788681539,3.06350282,126.03,126.0,0.05353844]
[1763788681845,0.05350282,126.03,126.0,3.09353844]
[1763788682441,0.05350282,126.03,126.02,3.04]
[1763788683244,0.05350282,126.03,126.0,9.09353844]
[1763788683543,0.05350282,126.03,126.01,3.04]
[1763788685538,3.14350282,126.03,126.0,9.38353844]
[1763788685737,0.05350282,126.03,126.01,3.33]
[1763788685941,0.05350282,126.03,126.01,10.4775]
[1763788686143,0.05350282,126.03,126.02,3.33]
[1763788688146,17.52789305,126.1,126.03,7.1462]
[1763788688344,3.09,126.09,126.05,3.33]
[1763788688752,3.09,126.12,126.05,3.33]
[1763788688947,6.01579532,126.11,126.05,3.33]
[1763788689148,0.0581889,126.09,126.07,0.05277348]
[1763788689351,0.0581889,126.09,126.07,3.38277348]
[1763788689851,0.0581889,126.09,126.07,0.05277348]
[1763788692362,0.0581889,126.09,126.08,3.33]
[1763788692756,3.09,126.08,126.07,0.05277348]
[1763788694059,3.09,126.06,125.98,3.33]
[1763788694256,3.09,126.05,125.98,3.33]
[1763788694573,3.09,126.05,126.0,3.33]
[1763788694862,0.05843575,126.04,126.01,3.38361941]
[1763788695071,0.05843575,126.04,126.01,3.38017013]
[1763788696368,0.05843575,126.04,126.01,10.52767013]
[1763788696665,0.05843575,126.04,126.02,3.33]
[1763788696960,3.09,126.11,126.03,3.33]
[1763788697160,3.09,126.09,126.03,3.33]
[1763788697360,9.10434054,126.09,126.03,3.33]
[1763788697656,3.09,126.09,126.03,3.33]
[1763788697856,0.05112475,126.07,126.05,0.05456237]
[1763788698060,3.14112475,126.07,126.05,0.05456237]
[1763788698965,0.05112475,126.07,126.05,3.38456237]
[1763788701153,3.14112475,126.07,126.05,0.05456237]
[1763788701358,0.05112475,126.07,126.05,0.05456237]
[1763788704370,0.05112475,126.07,126.06,3.33]
[1763788705470,0.05112475,126.07,126.05,0.05456237]
[1763788705471,3.14112475,126.07,126.05,0.05456237]
[1763788706471,0.05112475,126.07,126.05,3.38456237]
[1763788707566,0.05112475,126.07,126.05,0.05456237]
[1763788708672,3.14112475,126.07,126.05,0.05456237]
[1763788711579,10.28542475,126.07,126.05,0.05456237]
[1763788711780,3.09,126.06,126.05,0.05456237]
[1763788713179,0.05112475,126.07,126.05,3.38456237]
[1763788713570,0.05112475,126.07,126.05,10.52986237]
[1763788713788,0.05112475,126.07,126.06,3.33]
[1763788716081,3.13112475,126.07,126.05,0.05456237]
[1763788717976,0.05112475,126.07,126.05,3.10456237]
[1763788718783,3.08,126.13,126.06,3.05]
[1763788718982,12.01747951,126.12,126.06,3.05]
[1763788719185,3.08,126.13,126.06,3.05]
[1763788719376,12.0232669,126.12,126.06,3.05]
[1763788719575,10.2209,126.13,126.07,10.1942]
[1763788719885,0.05034059,126.11,126.09,0.05315963]
[1763788720882,3.13034059,126.11,126.09,0.05315963]
[1763788721477,10.27234059,126.11,126.09,0.05315963]
[1763788721887,3.08,126.1,126.09,0.05315963]
[1763788722589,3.13034059,126.11,126.09,0.05315963]
[1763788722903,0.05034059,126.11,126.09,3.10315963]
[1763788723683,0.05034059,126.11,126.1,3.05]
[1763788724077,15.09750209,126.15,126.1,3.05]
[1763788724288,8.99406807,126.18,126.11,3.05]
[1763788724586,11.91775766,126.17,126.11,3.05]
[1763788724783,6.04177174,126.16,126.11,3.05]
[1763788724982,3.08,126.18,126.13,10.1908]
[1763788725180,0.06013237,126.17,126.14,3.10994327]
[1763788725582,16.24260409,126.24,126.16,3.05]
[1763788725782,3.08,126.22,126.16,3.05]
[1763788725988,3.08,126.22,126.13,19.81]
[1763788725989,3.08,126.2,126.13,19.81]
[1763788726381,3.08,126.18,126.13,19.81]
[1763788726676,3.08,126.16,126.14,0.05072654]
[1763788726984,3.13994937,126.17,126.14,0.05072654]
[1763788727286,3.13994937,126.17,126.14,3.10072654]
[1763788727875,3.13994937,126.17,126.14,0.05072654]
[1763788729775,9.15765599,126.17,126.14,0.05072654]
[1763788729983,3.08,126.16,126.14,0.05072654]
[1763788730289,3.08,126.15,126.14,0.05072654]
[1763788730884,3.08,126.15,126.08,3.05]
[1763788730885,3.08,126.14,126.08,3.05]
[1763788731578,7.1417,126.12,126.05,19.81]
[1763788731783,10.2217,126.12,126.06,3.05]
[1763788732084,0.05813372,126.1,126.07,3.10966666]
[1763788733286,3.13813372,126.1,126.07,0.05966666]
[1763788734389,0.05813372,126.1,126.07,3.10966666]
[1763788734584,3.13813372,126.1,126.07,3.10966666]
[1763788734781,3.13813372,126.1,126.07,0.05966666]
[1763788736384,0.05813372,126.1,126.07,3.10966666]
[1763788737693,0.05813372,126.1,126.08,3.05]
[1763788738790,0.05813372,126.1,126.08,10.1933]
[1763788739288,0.05813372,126.1,126.09,3.05]
[1763788741097,3.08,126.16,126.1,3.05]
[1763788741386,3.08,126.19,126.11,3.05]
[1763788741686,3.08,126.17,126.11,3.05]
[1763788741890,3.08,126.16,126.09,3.05]
[1763788742088,3.13707805,126.14,126.11,0.05428815]
[1763788742883,3.13707805,126.14,126.11,3.10428815]
[1763788743085,0.05707805,126.14,126.11,3.10428815]
[1763788744092,0.05707805,126.14,126.12,3.05]
[1763788744690,0.05707805,126.14,126.13,3.05]
[1763788745191,3.13707805,126.14,126.11,3.10428815]
[1763788745395,3.13707805,126.14,126.11,0.05428815]
[1763788745696,0.05707805,126.14,126.11,3.20428815]
[1763788746094,0.05707805,126.14,126.11,10.34608815]
[1763788746395,0.05707805,126.14,126.12,3.15]
[1763788747088,0.05707805,126.14,126.11,0.05428815]
[1763788747294,3.36707805,126.14,126.11,0.05428815]
[1763788750996,3.31,126.13,126.11,0.05428815]
[1763788752188,0.05707805,126.14,126.11,3.20428815]
[1763788752392,3.36707805,126.14,126.11,0.05428815]
[1763788754102,3.36707805,126.14,126.11,3.20428815]
[1763788754404,0.05707805,126.14,126.11,3.20428815]
[1763788754901,3.36707805,126.14,126.11,3.20428815]
[1763788755906,0.05707805,126.14,126.11,10.34608815]
[1763788756205,0.05707805,126.14,126.12,3.15]
[1763788757495,0.05707805,126.14,126.12,10.2912]
[1763788757891,0.05707805,126.14,126.13,3.15]
[1763788759918,10.447,126.2,126.14,3.15]
[1763788760113,9.74076225,126.23,126.16,3.15]
[1763788760114,3.31,126.23,126.16,3.15]
[1763788760520,3.31,126.21,126.16,3.15]
[1763788761114,3.31,126.19,126.13,19.89]
[1763788761322,3.31,126.19,126.17,0.05181009]
[1763788761518,3.31,126.18,126.13,3.15]
[1763788762315,3.31,126.17,126.13,3.15]
[1763788762625,0.05113545,126.16,126.14,3.21073516]
[1763788762916,0.05986012,126.16,126.14,3.21073516]
[1763788763515,3.36986012,126.16,126.14,0.06073516]
[1763788765026,3.31,126.15,126.09,3.15]
[1763788765219,3.31,126.13,126.09,3.15]
[1763788765918,0.05942393,126.12,126.1,0.05195068]
[1763788766519,0.05942393,126.12,126.1,3.20195068]
[1763788767519,3.31,126.16,126.1,3.20195068]
[1763788768320,3.31,126.16,126.12,3.15]
[1763788768520,0.05778754,126.14,126.13,3.20081994]
[1763788768720,0.05778754,126.14,126.13,0.05081994]
[1763788768920,0.05778754,126.14,126.13,3.20081994]
[1763788770625,7.1378,126.19,126.13,3.20081994]
[1763788770819,3.31,126.2,126.14,3.15]
[1763788771625,3.31,126.23,126.16,3.15]
[1763788771825,114.3038854,126.24,126.16,3.15]
[1763788771826,9.32824471,126.22,126.16,3.21101318]
[1763788772020,3.36234937,126.21,126.18,0.05811323]
[1763788773722,3.31,126.19,126.18,0.05811323]
[1763788774022,3.31,126.19,126.13,27.0305]
[1763788774530,3.31,126.17,126.13,27.0305]
[1763788774727,3.31,126.17,126.14,3.15]
[1763788775026,3.36542453,126.17,126.14,3.20611647]
[1763788775225,3.36542453,126.17,126.14,0.05611647]
[1763788775226,3.31,126.16,126.14,0.05611647]
[1763788775829,10.27412453,126.17,126.14,0.05611647]
[1763788776126,3.33,126.15,126.14,0.05611647]
[1763788778831,3.33,126.14,126.09,16.74]
[1763788779328,3.33,126.14,126.09,20.0]
[1763788779633,3.33,126.14,126.1,3.26]
[1763788779823,0.05811329,126.13,126.11,0.05346753]
[1763788782026,3.38811329,126.13,126.11,0.05346753]
[1763788783017,0.05811329,126.13,126.11,0.05346753]
[1763788783224,0.05811329,126.13,126.11,3.31346753]
[1763788787333,3.33,126.16,126.11,3.31346753]
[1763788787539,3.33,126.19,126.12,3.26]
[1763788787943,10.57853602,126.22,126.15,3.26]
[1763788788234,12.00611864,126.21,126.15,3.26]
[1763788788433,0.06021596,126.19,126.18,3.26]
[1763788789031,3.39021596,126.19,126.17,0.05112109]
[1763788790336,0.06021596,126.19,126.17,3.31112109]
[1763788796139,0.06021596,126.19,126.17,0.05112109]
[1763788796335,3.39021596,126.19,126.17,0.05112109]
[1763788798741,0.06021596,126.19,126.17,3.31112109]
[1763788800241,3.39021596,126.19,126.17,0.05112109]
[1763788800745,0.06021596,126.19,126.17,3.31112109]
[1763788802044,0.06021596,126.19,126.17,10.44952109]
[1763788802251,0.06021596,126.19,126.18,3.26]
[1763788802444,0.06021596,126.19,126.17,0.05112109]
[1763788802748,0.06021596,126.19,126.17,3.31112109]
[1763788803746,2.12331163,126.24,126.18,3.26]
[1763788803942,3.33,126.25,126.2,3.26]
[1763788804843,5.45331163,126.22,126.21,0.05823772]
[1763788805148,3.33,126.21,126.16,20.0]
[1763788805341,3.33,126.2,126.17,3.14]
[1763788805947,3.3864842,126.2,126.17,3.19306453]
[1763788807040,0.0564842,126.2,126.17,10.33146453]
[1763788807245,0.0564842,126.2,126.17,3.19306453]
[1763788807443,2.12331163,126.24,126.17,3.19306453]
[1763788808246,3.29,126.23,126.17,3.19306453]
[1763788808545,3.34517008,126.21,126.17,3.19306453]
[1763788809653,3.29,126.2,126.17,3.19306453]
[1763788812148,3.34517008,126.21,126.17,3.19306453]
[1763788815651,10.48147008,126.21,126.17,3.19306453]
[1763788817046,0.05517008,126.21,126.18,3.14]
[1763788817651,3.29,126.27,126.2,3.14]
[1763788817954,3.29,126.27,126.21,3.14]
[1763788818155,10.423,126.27,126.22,3.14]
[1763788818852,3.34318917,126.26,126.23,3.19422067]
[1763788819360,3.34318917,126.26,126.23,0.05422067]
[1763788819553,0.05318917,126.26,126.23,3.19422067]
[1763788821256,0.05318917,126.26,126.23,10.32912067]
[1763788821460,0.05318917,126.26,126.24,3.14]
[1763788822756,3.34318917,126.26,126.23,0.05422067]
[1763788822961,5.4665008,126.26,126.23,0.05422067]
[1763788823260,3.29,126.25,126.23,0.05422067]
[1763788825061,10.4242,126.25,126.23,0.05422067]
[1763788825361,3.29,126.23,126.16,3.14]
[1763788825554,5.41331163,126.22,126.16,3.14]
[1763788825755,3.29,126.21,126.16,3.14]
[1763788826861,0.05680959,126.2,126.17,3.19238857]
[1763788828260,0.05680959,126.2,126.17,10.33078857]
[1763788828458,0.05680959,126.2,126.18,3.14]
[1763788832166,3.34680959,126.2,126.17,0.05238857]
[1763788832373,3.34680959,126.2,126.17,3.19238857]
[1763788833471,5.47012122,126.2,126.17,0.05238857]
[1763788833771,3.29,126.19,126.17,0.05238857]
[1763788834558,2.18012122,126.2,126.17,3.19238857]
[1763788834760,0.05680959,126.2,126.17,3.19238857]
[1763788835568,3.13680959,126.2,126.17,3.19238857]
[1763788836968,5.26012122,126.2,126.17,3.19238857]
[1763788837271,3.02,126.17,126.12,3.2]
[1763788837472,2.12331163,126.16,126.12,3.2]
[1763788837679,9.26261163,126.16,126.11,3.2]
[1763788837976,12.28261163,126.16,126.11,3.2]
[1763788838373,0.05312486,126.15,126.12,10.39791075]
[1763788838670,0.05312486,126.15,126.13,3.2]
[1763788839876,3.07312486,126.15,126.12,0.05671075]
[1763788840582,10.1603,126.14,126.12,0.05671075]
[1763788840773,3.02,126.13,126.12,0.05671075]
[1763788841473,10.1603,126.14,126.12,0.05671075]
[1763788841678,3.02,126.14,126.12,0.05671075]
[1763788843173,10.1603,126.14,126.12,0.05671075]
[1763788843481,3.02,126.13,126.12,0.05671075]
[1763788845384,3.02,126.11,126.04,3.2]
[1763788845584,3.02,126.1,126.06,3.2]
[1763788845786,3.02,126.08,126.03,3.2]
[1763788846175,3.02,126.08,126.02,23.8866]
[1763788846176,3.02,126.07,126.02,16.74]
[1763788846370,3.02,126.07,126.03,0.05401823]
[1763788846371,3.07971676,126.06,126.03,0.05401823]
[1763788848583,0.05971676,126.06,126.03,3.25401823]
[1763788848883,3.07971676,126.06,126.03,0.05401823]
[1763788849783,0.05971676,126.06,126.03,3.25401823]
[1763788851681,0.05971676,126.06,126.03,10.40031823]
[1763788851879,0.05971676,126.06,126.04,3.2]
[1763788853784,0.05971676,126.06,126.04,10.3457]
[1763788854089,3.02,126.12,126.05,3.2]
[1763788854881,0.05807793,126.1,126.07,3.25105589]
[1763788855582,3.07807793,126.1,126.07,0.05105589]
[1763788856680,3.02,126.09,126.07,0.05105589]
[1763788857584,7.1433,126.09,126.07,0.05105589]
[1763788857789,3.07807793,126.1,126.07,0.05105589]
[1763788857986,3.07807793,126.1,126.07,3.25105589]
[1763788858974,3.07807793,126.1,126.07,0.05105589]
[1763788860682,3.02,126.08,126.07,0.05105589]
[1763788860880,3.02,126.08,126.01,3.2]
[1763788861180,3.02,126.05,126.01,3.2]
[1763788861383,3.02,126.05,126.0,3.2]
[1763788861787,0.05575416,126.04,126.01,3.25927531]
[1763788862087,3.07575416,126.04,126.01,3.25927531]
[1763788862479,0.05575416,126.04,126.01,3.25927531]
[1763788863786,3.07575416,126.04,126.01,0.05927531]
[1763788864483,0.05575416,126.04,126.01,3.25927531]
[1763788865587,3.31575416,126.04,126.01,0.05927531]
[1763788870487,3.26,126.02,125.95,3.0]
[1763788871490,3.31060403,126.0,125.97,0.05789234]
[1763788873590,3.26,125.99,125.92,3.0]
[1763788874790,0.06057623,125.97,125.94,3.05406444]
[1763788875103,3.32057623,125.97,125.94,3.05406444]
[1763788875297,3.32057623,125.97,125.94,0.05406444]
[1763788876490,10.47057623,125.97,125.94,0.05406444]
[1763788876691,3.26,125.96,125.94,0.05406444]
[1763788877698,3.26,125.95,125.94,0.05406444]
[1763788879692,3.26,125.92,125.84,3.0]
[1763788879996,3.26,125.88,125.77,3.0]
[1763788880191,3.26,125.88,125.78,3.0]
[1763788880797,0.05351663,125.84,125.82,0.05283231]
[1763788880999,0.05959748,125.84,125.82,0.05283231]
[1763788882097,3.26,125.89,125.82,4.63283231]
[1763788882299,3.26,125.92,125.84,3.0]
[1763788882594,3.26,125.91,125.84,10.157]
[1763788882797,3.26,125.91,125.82,111.3524]
[1763788882798,3.26,125.91,125.82,3.0]
[1763788882986,3.26,125.9,125.82,3.0]
[1763788883185,0.05554995,125.87,125.85,0.05240621]
[1763788883395,3.31554995,125.87,125.85,0.05240621]
[1763788884101,0.05554995,125.87,125.85,3.05240621]
[1763788884997,7.1506,125.96,125.87,3.0]
[1763788885200,3.26,125.94,125.88,3.0]
[1763788886094,0.05531321,125.92,125.9,3.05173782]
[1763788886300,0.06038615,125.92,125.9,3.05173782]
[1763788886600,3.26,125.97,125.92,3.0]
[1763788887393,0.0528889,125.96,125.93,3.06038365]
[1763788888297,3.3128889,125.96,125.93,3.06038365]
[1763788888500,0.0528889,125.96,125.93,3.06038365]
[1763788888699,3.3128889,125.96,125.93,0.06038365]
[1763788890108,3.26,125.95,125.93,0.06038365]
[1763788890799,3.26,125.93,125.87,10.1552]
[1763788890998,3.26,125.93,125.87,26.9152]
[1763788892005,0.05167051,125.91,125.89,0.05179712]
[1763788893099,3.31167051,125.91,125.89,0.05179712]
[1763788893607,3.31167051,125.91,125.84,19.76]
[1763788893905,3.26,125.91,125.84,19.76]
[1763788894102,3.26,125.89,125.84,3.0]
[1763788894504,3.26,125.89,125.85,0.05553729]
[1763788894802,0.05020221,125.88,125.85,0.05553729]
[1763788895003,3.31020221,125.88,125.85,0.05553729]
[1763788896710,3.04,125.87,125.85,0.05553729]
[1763788897206,10.1957,125.87,125.81,3.0]
[1763788897409,3.04,125.86,125.8,16.76]
[1763788898009,3.04,125.84,125.8,16.76]
[1763788898403,0.0523887,125.83,125.81,0.05815024]
[1763788898796,3.0923887,125.83,125.81,0.05815024]
[1763788899805,0.0523887,125.83,125.81,3.29815024]
[1763788900005,3.04,125.88,125.81,3.29815024]
[1763788900507,3.04,125.87,125.81,0.05815024]
[1763788900903,3.04,125.85,125.81,0.05815024]
[1763788901112,3.09068748,125.85,125.82,0.05040041]
[1763788902699,0.05068748,125.85,125.82,3.29040041]
[1763788904111,0.05068748,125.85,125.83,10.3976]
[1763788904307,0.05068748,125.85,125.83,3.24]
[1763788904497,0.05068748,125.85,125.82,3.29040041]
[1763788907111,3.09068748,125.85,125.82,0.05040041]
[1763788908615,10.24748748,125.85,125.82,0.05040041]
[1763788909918,3.09068748,125.85,125.82,0.05040041]
[1763788911015,3.04,125.84,125.76,3.24]
[1763788911209,3.04,125.81,125.76,3.24]
[1763788911817,7.1597,125.8,125.76,3.24]
[1763788912018,3.04,125.81,125.76,3.24]
[1763788912211,0.05229473,125.8,125.77,3.29477451]
[1763788913224,3.09229473,125.8,125.77,0.05477451]
[1763788913613,3.04,125.78,125.77,0.05477451]
[1763788914521,3.04,125.77,125.72,3.24]
[1763788915423,0.05660189,125.76,125.73,0.03010689]
[1763788916224,3.09660189,125.76,125.73,0.03010689]
[1763788917418,3.09660189,125.76,125.73,3.27010689]
[1763788917928,0.05660189,125.76,125.73,3.27010689]
[1763788920317,0.05660189,125.76,125.74,3.24]
[1763788921518,3.04,125.81,125.75,3.24]
[1763788921715,3.04,125.84,125.77,3.24]
[1763788921915,3.04,125.84,125.78,3.24]
[1763788922116,3.04,125.84,125.78,10.4005]
[1763788922316,3.04,125.84,125.78,3.24]
[1763788922617,3.04,125.84,125.77,16.78]
[1763788922618,3.04,125.81,125.74,16.78]
[1763788922821,3.09336153,125.79,125.76,0.05867151]
[1763788923222,3.09336153,125.79,125.76,3.29867151]
[1763788923429,0.05336153,125.79,125.76,3.29867151]
[1763788924632,0.05336153,125.79,125.76,10.46027151]
[1763788924817,0.05336153,125.79,125.77,3.24]
[1763788925625,0.05336153,125.79,125.78,3.12]
[1763788927429,7.1572,125.85,125.78,3.12]
[1763788927733,8.98517395,125.86,125.78,3.12]
[1763788927935,16.14137395,125.86,125.79,10.28]
[1763788928227,10.2062,125.86,125.8,19.9]
[1763788928451,0.0568417,125.84,125.82,0.05797563]
[1763788928935,3.1068417,125.84,125.82,0.05797563]
[1763788929336,0.0568417,125.84,125.82,3.17797563]
[1763788930530,3.1068417,125.84,125.82,0.05797563]
[1763788930730,0.0568417,125.84,125.82,3.17797563]
[1763788932028,0.0568417,125.84,125.82,10.33607563]
[1763788932229,10.2042,125.9,125.83,3.12]
[1763788932632,3.05,125.9,125.84,3.12]
[1763788933137,3.10833752,125.88,125.86,0.05157593]
[1763788934629,0.05833752,125.88,125.86,3.17157593]
[1763788935537,0.05833752,125.88,125.86,0.05157593]
[1763788935731,3.10833752,125.88,125.86,0.05157593]
[1763788935930,3.10833752,125.88,125.81,16.78]
[1763788936338,3.10833752,125.88,125.8,3.12]
[1763788936339,3.05,125.86,125.8,19.9]
[1763788936832,3.05,125.84,125.8,3.12]
[1763788937033,3.11070197,125.83,125.81,0.0608614]
[1763788938033,3.05,125.81,125.74,3.12]
[1763788938233,111.3714,125.8,125.74,19.9]
[1763788938436,3.05,125.79,125.74,16.78]
[1763788938633,3.05,125.79,125.71,3.12]
[1763788938634,3.05,125.76,125.71,3.12]
[1763788939137,3.10437635,125.75,125.72,0.05301886]
[1763788940437,3.05,125.74,125.72,0.05301886]
[1763788941441,0.05437635,125.75,125.72,0.05301886]
[1763788941635,3.10437635,125.75,125.72,0.05301886]
[1763788942237,0.05437635,125.75,125.72,3.17301886]
[1763788944046,0.05437635,125.75,125.73,3.12]
[1763788944543,0.05437635,125.75,125.74,3.12]
[1763788950155,0.05437635,125.75,125.73,16.78]
[1763788950446,3.10437635,125.75,125.73,16.78]
[1763788950741,3.10437635,125.75,125.72,0.05301886]
[1763788952245,0.05437635,125.75,125.72,3.17301886]
[1763788953546,0.05437635,125.75,125.73,7.1633]
[1763788953753,0.05437635,125.75,125.74,3.12]
[1763788954349,13.09387395,125.82,125.76,3.12]
[1763788954555,13.09387395,125.82,125.76,19.9]
[1763788954556,16.14387395,125.82,125.76,19.9]
[1763788954945,3.05,125.8,125.76,19.9]
[1763788955557,111.3503,125.83,125.77,3.11079113]
[1763788955558,0.05450748,125.79,125.77,3.11079113]
[1763788956948,0.05450748,125.79,125.77,0.06079113]
[1763788957150,0.05450748,125.79,125.77,3.24079113]
[1763788957854,3.2,125.84,125.78,3.18]
[1763788958943,0.05292237,125.82,125.8,0.05089625]
[1763788959639,3.25292237,125.82,125.8,0.05089625]
[1763788959840,3.2,125.81,125.8,0.05089625]
[1763788960055,0.05292237,125.82,125.8,0.05089625]
[1763788960258,3.25292237,125.82,125.8,0.05089625]
[1763788961147,0.05292237,125.82,125.8,0.05089625]
[1763788961356,0.05292237,125.82,125.8,3.23089625]
[1763788962858,0.05292237,125.82,125.8,0.05089625]
[1763788963054,3.25292237,125.82,125.8,0.05089625]
[1763788963355,0.05292237,125.82,125.8,0.05089625]
[1763788964956,3.25292237,125.82,125.8,0.05089625]
[1763788966054,3.25292237,125.82,125.74,3.18]
[1763788966055,3.25292237,125.82,125.74,19.96]
[1763788966362,3.2,125.81,125.74,3.18]
[1763788966552,3.2,125.81,125.74,19.96]
[1763788966747,16.29397395,125.82,125.75,3.18]
[1763788966950,0.05278491,125.8,125.77,3.23565252]
[1763788967147,3.25278491,125.8,125.77,3.23565252]
[1763788967757,0.05278491,125.8,125.77,3.23565252]
[1763788968650,3.25278491,125.8,125.77,3.23565252]
[1763788970261,0.05278491,125.8,125.77,3.23565252]
[1763788971866,3.25278491,125.8,125.77,0.05565252]
[1763788973056,0.05278491,125.8,125.77,3.23565252]
[1763788974466,3.25278491,125.8,125.77,0.05565252]
[1763788974658,3.25278491,125.8,125.77,3.23565252]
[1763788976068,0.05278491,125.8,125.77,3.23565252]
[1763788977260,0.05278491,125.8,125.77,10.39665252]
[1763788977565,0.05278491,125.8,125.78,3.18]
[1763788977964,0.05278491,125.8,125.78,10.3404]
[1763788978266,6.53900598,125.89,125.8,3.18]
[1763788978595,3.2,125.92,125.84,3.18]
[1763788978771,9.24109316,125.91,125.86,3.18]
[1763788979073,3.2,125.91,125.86,3.18]
[1763788979263,0.05599878,125.9,125.87,3.23326348]
[1763788979461,3.25599878,125.9,125.87,3.23326348]
[1763788979772,3.25599878,125.9,125.87,0.05326348]
[1763788980471,3.2,125.89,125.87,0.05326348]
[1763788980971,3.2,125.85,125.77,3.18]
[1763788981160,3.2,125.83,125.77,3.18]
[1763788981360,3.2,125.82,125.74,3.18]
[1763788981560,3.2,125.8,125.74,3.18]
[1763788981768,3.2,125.79,125.69,3.18]